{"text_format":"1","workbook":"xlsx","n_sheets":2,"sheets":["informacja hodowca","Słownik"],"not_rendered":{"charts":0,"images":1,"macros":0,"external_links":0,"defined_names":2,"comments":0,"pivot_tables":0},"unopened":[],"bounds":{"document_bytes":16777216,"sheet_cells":100000,"rows_first":2000,"rows_last":500,"rows_between":2000,"halvings":0,"cell_chars":16384,"cell_head_chars":4096},"cells_cut":0,"cells_raw":0,"read":"whole","date_system":"1900"}

{"sheet":"informacja hodowca","index":0,"n_rows":48,"n_cols":17,"rows_kept":48,"cut":false,"hidden":false,"merged":[[37,8,37,9],[37,10,37,13],[38,8,38,9],[39,8,39,9],[40,8,40,9],[38,10,38,13],[39,10,39,13],[40,10,40,13],[25,10,25,13],[26,12,26,13],[28,8,28,9],[28,10,28,11],[28,12,28,13],[29,8,29,9],[29,10,29,11],[29,12,29,13],[27,8,27,9],[27,10,27,11],[27,12,27,13],[25,8,26,9],[33,9,34,9],[33,8,34,8],[46,1,46,13],[5,2,5,11],[19,10,19,11],[22,8,22,9],[22,10,22,11],[21,10,21,11],[21,12,21,13],[34,10,34,11],[34,12,34,13],[37,1,37,7],[30,8,30,9],[30,10,30,11],[30,12,30,13],[31,8,31,9],[31,10,31,11],[31,12,31,13],[23,8,23,9],[23,10,23,11],[23,12,23,13],[24,8,24,9],[24,10,24,11],[24,12,24,13],[45,1,45,13],[38,1,38,7],[35,10,35,11],[35,12,35,13],[36,2,36,13],[32,2,32,13],[17,2,17,13],[20,8,20,9],[20,10,20,11],[20,12,20,13],[19,12,19,13],[18,8,19,9],[18,10,18,13],[29,6,29,7],[30,1,30,5],[30,6,30,7],[31,1,31,5],[31,6,31,7],[25,1,26,5],[27,1,27,5],[27,6,27,7],[28,1,28,5],[28,6,28,7],[26,10,26,11],[22,12,22,13],[13,3,13,13],[14,3,14,13],[15,3,15,13],[16,3,16,13],[14,1,14,2],[15,1,15,2],[16,1,16,2],[13,1,13,2],[12,1,12,13],[8,1,8,4],[10,1,10,2],[10,3,10,13],[5,1,7,1],[7,10,7,13],[8,5,8,13],[9,2,9,13],[6,2,6,13],[11,1,11,2],[11,3,11,13],[42,1,42,13],[47,1,50,13],[18,6,19,7],[18,1,19,5],[20,1,20,5],[20,6,20,7],[21,1,21,5],[21,6,21,7],[22,1,22,5],[22,6,22,7],[23,1,23,5],[23,6,23,7],[24,1,24,5],[24,6,24,7],[25,6,26,7],[41,2,41,13],[33,10,33,13],[33,1,34,7],[39,1,39,7],[40,1,40,7],[21,8,21,9],[44,1,44,13],[29,1,29,5],[35,1,35,7]]}
[]
[]
[]
[]
[null,"Wypełnij czerwone pola. Pola należy wypełniać po kolei, ponieważ są od siebie zależne."]
[null,"Lp.","Informacja użytkownika dla ministra właściwego do spraw nauki",null,null,null,null,null,null,null,null,null,"Pozycja w rejestrze 2)"]
[null,null,"na podstawie art. 30 ust. 4 pkt 2 ustawy 1)"]
[null,null,null,null,null,null,"za  ",null,"rok",null,null,null,null,null,null,{"$f":"COUNTBLANK(H8)","v":1}]
[null,"Data sporządzenia informacji",null,null,null,null,null,null,null,null,null,null,null,null,null,{"$f":"COUNTBLANK(F9)","v":1}]
[null,"1.","Dane użytkownika 3)"]
[null,"Nazwa",null,null,null,null,null,null,null,null,null,null,null,null,null,{"$f":"COUNTBLANK(D11)","v":1}]
[null,"Adres  wykonywania  działalnosci ",null,null,null,null,null,null,null,null,null,null,null,null,null,{"$f":"COUNTBLANK(D12)","v":1}]
[null,"Dane kontaktowe osoby sporządzającej informację"]
[null,"Imię",null,null,null,null,null,null,null,null,null,null,null,null,null,{"$f":"COUNTBLANK(D14)","v":1}]
[null,"Nazwisko",null,null,null,null,null,null,null,null,null,null,null,null,null,1]
[null,"Telefon służbowy ",null,null,null,null,null,null,null,null,null,null,null,null,null,1]
[null,"E-mail służbowy ",null,null,null,null,null,null,null,null,null,null,null,null,null,{"$f":"COUNTBLANK(D17)","v":1}]
[null,"2.","Zwierzęta dostarczone przez hodowców lub dostawców (inne niż zwierzęta z rzędu naczelnych)"]
[null,"Gatunek (zwierzęta niezmienione genetycznie)",null,null,null,null,"Inny",null,"Liczba zwierząt dostarczonych",null,"Liczba zwierząt niewykorzystanych w procedurach"]
[null,null,null,null,null,null,null,null,null,null,"Liczba zwierząt uśmierconych lub padłych",null,"Liczba zwierząt przekazanych"]
[null,"wybierz z listy",null,null,null,null,null,null,null,null,null,null,null,null,null,{"$f":"COUNTBLANK(B21)","v":0},{"$f":"COUNTBLANK(D21)","v":1}]
[null,"wybierz z listy",null,null,null,null,null,null,null,null,null,null,null,null,null,0,1]
[null,"wybierz z listy",null,null,null,null,null,null,null,null,null,null,null,null,null,{"$f":"COUNTBLANK(B23)","v":0},{"$f":"COUNTBLANK(D23)","v":1}]
[null,"wybierz z listy"]
[null,"wybierz z listy"]
[null,"Gatunek (zwierzęta zmienione genetycznie 4))",null,null,null,null,"Inny",null,"Liczba zwierząt dostarczonych",null,"Liczba zwierząt niewykorzystanych w procedurach"]
[null,null,null,null,null,null,null,null,null,null,"Liczba zwierząt uśmierconych lub padłych",null,"Liczba zwierząt przekazanych"]
[null,"wybierz z listy",null,null,null,null,null,null,null,null,null,null,null,null,null,{"$f":"COUNTBLANK(B28)","v":0},{"$f":"COUNTBLANK(D28)","v":1}]
[null,"wybierz z listy",null,null,null,null,null,null,null,null,null,null,null,null,null,0,1]
[null,"wybierz z listy",null,null,null,null,null,null,null,null,null,null,null,null,null,{"$f":"COUNTBLANK(B30)","v":0},{"$f":"COUNTBLANK(D30)","v":1}]
[null,"wybierz z listy"]
[null,"wybierz z listy"]
[null,"3.","Zwierzęta z rzędu naczelnych dostarczone przez hodowców lub dostawców"]
[null,"Gatunek ",null,null,null,null,null,null,"Inny","Liczba zwierząt dostarczonych","Liczba zwierząt niewykorzystanych w procedurach"]
[null,null,null,null,null,null,null,null,null,null,"Liczba zwierząt uśmierconych lub padłych",null,"Liczba zwierząt przekazanych"]
[null,"wybierz z listy",null,null,null,null,null,null,null,null,null,null,null,null,null,{"$f":"COUNTBLANK(B36)","v":0},{"$f":"COUNTBLANK(D36)","v":1}]
[null,"4.","Zwierzęta uśmiercone wyłącznie w celu pobrania narządów lub tkanek. Zwierzęta poddane procedurze, której ostatnią częścią jest uśmiercenie i pobranie tkanki nie wpisujecie w tym miejscu"]
[null,"Gatunek",null,null,null,null,null,null,"Inny",null,"Liczba zwierząt uśmierconych"]
[null,"wybierz z listy",null,null,null,null,null,null,null,null,null,null,null,null,null,{"$f":"COUNTBLANK(B39)","v":0},{"$f":"COUNTBLANK(D39)","v":1}]
[null,"wybierz z listy"]
[null,"wybierz z listy"]
[null,"5.","Uwagi *"]
[]
[null,"[1]) Ustawa z dnia 15 stycznia 2015 r. o ochronie zwierząt wykorzystywanych do celów naukowych lub edukacyjnych."]
[null,"[2]) Rejestr, o którym mowa w art. 26 ustawy z dnia 15 stycznia 2015 r. o ochronie zwierząt wykorzystywanych do celów naukowych i edukacyjnych"]
[null,"[3]) Dane należy wpisać zgodnie z danymi podanymi we wniosku, o których mowa w art. 27 ust. 3 ustawy z dnia 15 stycznia 2015 r. o ochronie zwierząt wykorzystywanych do celów naukowych i edukacyjnych"]
[null,"[4]) Kategoria \"zwierzęta zmienione genetycznie\" obejmuje zwierzęta zmienione genetycznie (transgenicznie, metodą knock-out i za pomocą innych modyfikacji genetycznych) oraz zwierzęta, u których mutacja wystąpiła naturalnie lub została indukowana."]
[null,"* W uwagach podać dodatkowe informację i wyjaśnienia, skąd wynikają różnice w liczbie zwierząt np. liczba zwierząt dostarczonych w danym roku, ale do wykorzystania w roku kolejnym;  liczba zwierząt dostarczona w latach poprzednich; informacja, że zostały dostarczone samice ciężarne, a wykorzystywano w procedurach młode etc.\n"]

{"sheet":"Słownik","index":1,"n_rows":46,"n_cols":7,"rows_kept":46,"cut":false,"hidden":true,"merged":[]}
[]
[null,null,null,null,null,null,"mysz domowa (Mus musculus)"]
[null,"wybierz z listy 1",null,null,"wybierz z listy 2",null,"szczur wędrowny (Rattus norvegicus)"]
[null,null,null,null,null,null,"świnka morska (Cavia porcellus)"]
[null,null,null,"18)  ","małpiatki (Prosimia)",null,"chomik syryjski (Mesocricetus auratus)"]
["1)   ","mysz domowa (Mus musculus)",null,"19)  ","marmozety i tamaryny (w tym Callithrixx jacchus)",null,"chomik chiński (Cricetulus griseus)"]
["2)   ","szczur wędrowny (Rattus norvegicus)",null,"20)  ","makak jawajski (Macaca fascicularis)",null,"myszoskoczek mongolski (Meriones unguiculatus)"]
["3)   ","świnka morska (Cavia porcellus)",null,"21)  ","makak rezus (Macaca mulatta)",null,"inne gryzonie (inne Rodentia)"]
["4)   ","chomik syryjski (Mesocricetus auratus)",null,"22)  ","koczkodany Chlorocebus spp. (w tym Pygerythrus lub sabaeus)",null,"królik europejski (Oryctolagus caniculus)"]
["5)   ","chomik chiński (Cricetulus griseus)",null,"23)  ","pawiany (Papio spp.)",null,"kot domowy (Felis catus)"]
["6)   ","myszoskoczek mongolski (Meriones unguiculatus)",null,"24)  ","sajmiri wiewiórcza (w tym Saimiri sciureus)",null,"pies domowy (Canis familiaris)"]
["7)   ","inne gryzonie (inne Rodentia)",null,"25)  ","inne gatunki zwierząt naczelnych (inne gatunki Ceboidea i Cercopithecoidea)",null,"fretki (Mustela putorius furo)"]
["8)   ","królik europejski (Oryctolagus caniculus)",null,"26)  ","człekokształtne (Hominoidea)",null,"inne drapieżniki (inne Carnivora)"]
["9)   ","kot domowy (Felis catus)",null,"18)  ","małpiatki (Prosimia)",null,"konie, osły i ich mieszańce (Equidae)"]
["10)  ","pies domowy (Canis familiaris)",null,"19)  ","marmozety i tamaryny (w tym Callithrixx jacchus)",null,"świnie (Sus scrofa domesticus)"]
["11)  ","fretki (Mustela putorius furo)",null,"20)  ","makak jawajski (Macaca fascicularis)",null,"kozy (Capra aegagrus hircus)"]
["12)  ","inne drapieżniki (inne Carnivora)",null,"21)  ","makak rezus (Macaca mulatta)",null,"owce (Ovis aries)"]
["13)  ","konie, osły i ich mieszańce (Equidae)",null,"22)  ","koczkodany Chlorocebus spp. (w tym Pygerythrus lub sabaeus)",null,"bydło (Bos primigenius)"]
["14)  ","świnie (Sus scrofa domesticus)",null,"23)  ","pawiany (Papio spp.)",null,"małpiatki (Prosimia)"]
["15)  ","kozy (Capra aegagrus hircus)",null,"24)  ","sajmiri wiewiórcza (w tym Saimiri sciureus)",null,"marmozety i tamaryny (w tym Callithrixx jacchus)"]
["16)  ","owce (Ovis aries)",null,"25)  ","inne gatunki zwierząt naczelnych (inne gatunki Ceboidea i Cercopithecoidea)",null,"makak jawajski (Macaca fascicularis)"]
["17)  ","bydło (Bos primigenius)",null,"26)  ","człekokształtne (Hominoidea)",null,"makak rezus (Macaca mulatta)"]
["27)  ","inne ssaki (inne Mammalia)",null,null,null,null,"koczkodany Chlorocebus spp. (w tym Pygerythrus lub sabaeus)"]
["28)  ","kura domowa (Gallus gallus domesticus)",null,null,null,null,"pawiany (Papio spp.)"]
["29)  ","inne ptaki (inne Aves)",null,null,null,null,"sajmiri wiewiórcza (w tym Saimiri sciureus)"]
["30)  ","gady (Reptilia)",null,null,null,null,"inne gatunki zwierząt naczelnych (inne gatunki Ceboidea i Cercopithecoidea)"]
["31)  ","żaby trawne (Rana temporaria) i żaby lamparcie (Rana pipiens)",null,null,null,null,"człekokształtne (Hominoidea)"]
["32)  ","grzbietorodowate: Platany szponiaste (Xenopus laevis) oraz platany tropikalne (Xenopus tropicalis)",null,null,null,null,"małpiatki (Prosimia)"]
["33)  ","inne płazy (inne Amphibia)",null,null,null,null,"marmozety i tamaryny (w tym Callithrixx jacchus)"]
["34)  ","danio pręgowany (Danio rerio)",null,null,null,null,"makak jawajski (Macaca fascicularis)"]
["35)  ","inne ryby (inne Pisces)",null,null,null,null,"makak rezus (Macaca mulatta)"]
["36)  ","głowonogi (Cephalopoda).",null,null,null,null,"koczkodany Chlorocebus spp. (w tym Pygerythrus lub sabaeus)"]
[null,null,null,null,null,null,"pawiany (Papio spp.)"]
[null,null,null,null,null,null,"sajmiri wiewiórcza (w tym Saimiri sciureus)"]
[null,null,null,null,null,null,"inne gatunki zwierząt naczelnych (inne gatunki Ceboidea i Cercopithecoidea)"]
[null,null,null,null,null,null,"człekokształtne (Hominoidea)"]
[null,null,null,null,null,null,"inne ssaki (inne Mammalia)"]
[null,null,null,null,null,null,"kura domowa (Gallus gallus domesticus)"]
[null,null,null,null,null,null,"inne ptaki (inne Aves)"]
[null,null,null,null,null,null,"gady (Reptilia)"]
[null,null,null,null,null,null,"żaby trawne (Rana temporaria) i żaby lamparcie (Rana pipiens)"]
[null,null,null,null,null,null,"grzbietorodowate: Platany szponiaste (Xenopus laevis) oraz platany tropikalne (Xenopus tropicalis)"]
[null,null,null,null,null,null,"inne płazy (inne Amphibia)"]
[null,null,null,null,null,null,"danio pręgowany (Danio rerio)"]
[null,null,null,null,null,null,"inne ryby (inne Pisces)"]
[null,null,null,null,null,null,"głowonogi (Cephalopoda)."]